Cogmind - Beta 9.6 @@@ ROGUE MODE // 2020.08.20 @ 19:14:27 Player: Finestep Result: Self-destructed Performance ------------- Evolutions (4) 2000 Regions Visited (12) 2400 Robots Destroyed (116) 580 Value Destroyed (3101) 3101 Prototype IDs (42) 840 Alien Tech Used (0) 0 Bonus (801) 801 TOTAL SCORE: 9722 Bonus ------- High Alert Combat Kills 218 Follower Combat Kills 317 Met Data Miner 300 Friendly Fire -34 Cogmind --------- Core Integrity 790/850 Matter 300/300 Energy 100/100 System Corruption 0% Temperature Cool (0) Movement Rolling (110) Ox1 Location -6/Waste Parts ------- > --- POWER (2) -------- (None) > --- PROPULSION (2) --- Armored Huge Wheel > --- UTILITY (7) ------ High-capacity Storage Unit Advanced Signal Interpreter Target Analyzer Weapon Cycler > --- WEAPON (4) ------- (None) > --- INVENTORY (12) --- Advanced Sensor Array Improved Particle Charger Heavy Armor Plating Improved Medium Armor Plating Medium Insulated Plating Lightning Gun Lightning Gun Electrolaser Guided EMP Blaster Makeshift Sword Peak State ------------ > --- POWER ------------ Fission Core Antimatter Reactor > --- PROPULSION ------- Armored Huge Wheel > --- UTILITY ---------- Coolant Injector Large Storage Unit High-capacity Storage Unit High-capacity Storage Unit Advanced Signal Interpreter Target Analyzer Weapon Cycler > --- WEAPON ----------- Precision Beam Rifle Precision Beam Rifle Autogun Enhanced Autogun > --- INVENTORY -------- Light Treads Improved Treads Armored Wheel Improved Heat Sink Advanced Heat Sink High-capacity Matter Pod Advanced Sensor Array Improved Particle Charger Weapon Cycler Makeshift Transmission Jammer Heavy Armor Plating Improved Light Armor Plating Improved Medium Armor Plating Medium Insulated Plating Improved Shield Generator PSU Rigger Lightning Gun Lightning Gun Electrolaser Precision Beam Rifle Advanced EMP Blaster Guided EMP Blaster Gamma Bomb Array Makeshift Sword [Rating: 61] Favorites ----------- Power Reinforced Ion Engine Engine Reinforced Ion Engine Power Core Fission Core Reactor Antimatter Reactor Propulsion Light Treads Treads Light Treads Wheel Compact Wheel Utility Large Storage Unit Device Advanced Sensor Array Storage Large Storage Unit Processor Advanced Signal Interpreter Protection Improved Medium Armor Plating Weapon Enhanced Autogun Energy Gun Precision Beam Rifle Ballistic Gun Enhanced Autogun Launcher Advanced EMP Blaster Slashing Weapon Makeshift Sword Build | -11 -10 -10 -10 -9 -8 -7 -7 -7 -7 -6 -6 -6 ------- Run | Scr Mat Min Exi Min Mat Fac Low Low Dat Pro Fac Was Slots Evolved 8 | . . . . . 4 2 . . . . 2 . Power 1 | . . . . . . . . . . . 1 . Propulsion . | . . . . . . . . . . . . . Utility 5 | . . . . . 2 2 . . . . 1 . Weapon 2 | . . . . . 2 . . . . . . . Parts Attached 130 | 6 9 . 1 3 53 21 1 9 . 15 7 5 Power 8 | 1 1 . . . 3 . . . . 1 1 1 Engine 6 | 1 1 . . . 3 . . . . 1 . . Core 1 | . . . . . . . . . . . 1 . Reactor 1 | . . . . . . . . . . . . 1 Propulsion 20 | 2 2 . 1 . 10 1 . 1 . 2 1 . Treads 16 | . 1 . 1 . 10 1 . 1 . 2 . . Leg . | . . . . . . . . . . . . . Wheel 4 | 2 1 . . . . . . . . . 1 . Hover . | . . . . . . . . . . . . . Flight . | . . . . . . . . . . . . . Utility 48 | 1 3 . . . 16 15 1 2 . 5 2 3 Device 19 | . . . . . 3 6 1 2 . 4 1 2 Storage 10 | 1 3 . . . 3 3 . . . . . . Processor 6 | . . . . . 4 1 . . . . . 1 Hackware . | . . . . . . . . . . . . . Protection 13 | . . . . . 6 5 . . . 1 1 . Artifact . | . . . . . . . . . . . . . Weapon 54 | 2 3 . . 3 24 5 . 6 . 7 3 1 Energy Gun 7 | 1 1 . . . 1 1 . . . 1 1 1 Energy Cannon . | . . . . . . . . . . . . . Ballistic Gun 37 | 1 2 . . 3 19 2 . 5 . 4 1 . Ballistic Cannon . | . . . . . . . . . . . . . Launcher 7 | . . . . . 2 1 . 1 . 2 1 . Special Weapon . | . . . . . . . . . . . . . Impact Weapon . | . . . . . . . . . . . . . Slashing Weapon 3 | . . . . . 2 1 . . . . . . Piercing Weapon . | . . . . . . . . . . . . . Special Melee Weapon . | . . . . . . . . . . . . . Unidentified Prototypes 4 | . . . . . 3 . . . . . 1 . Parts Lost 18 | . 4 . . . 4 . . . . 7 . 3 Power 3 | . 1 . . . 1 . . . . 1 . . Propulsion 2 | . . . . . . . . . . 2 . . Utility 6 | . . . . . 2 . . . . 2 . 2 Weapon 7 | . 3 . . . 1 . . . . 2 . 1 Highest Loss Streak 4 | . 2 . . . 3 . . . . 4 . 3 Average Slot Usage (%) 98 | . 98 100 100 100 97 100 100 100 100 97 98 86 Engine 9 | . 14 14 14 14 9 7 7 7 7 6 6 2 Treads 16 | . 7 14 23 28 18 15 15 15 15 14 11 . Wheel 2 | . 20 14 4 . . . . . . . . 6 Device 4 | . . . . . 1 9 7 7 7 6 13 12 Storage 24 | . 26 28 28 28 23 23 23 23 23 23 20 18 Processor 3 | . . . . . 3 . 7 7 7 7 6 13 Protection 5 | . . . . . 5 12 7 7 7 6 6 . Energy Gun 4 | . 7 14 14 . . 1 7 3 . 3 6 11 Ballistic Gun 26 | . 20 14 14 27 35 28 23 26 30 24 18 13 Naked Turns . | . . . . . . . . . . . . . Heaviest Build 119 | 12 41 41 41 41 91 110 109 115 110 113 116 119 Greatest Support 40 | 32 32 16 40 40 40 40 40 40 40 40 40 28 Greatest Overweight (x) 5 | . 2 2 2 1 2 2 2 2 2 5 4 4 Average Overweight (x) 1 | . 1 2 1 . 1 2 2 2 2 2 2 3 Largest Inventory Capacity 26 | 6 16 16 16 16 24 26 26 26 26 26 26 26 Average Capacity 21 | 5 14 16 16 16 19 24 26 26 26 26 26 24 Most Carried 26 | 5 16 15 16 16 24 26 26 26 26 26 26 26 Average Carried 20 | 3 13 15 15 15 19 23 25 25 26 25 24 24 Final Capacity 26 | 6 16 16 16 16 24 26 26 26 26 26 26 12 Final Carried 26 | 5 15 15 16 16 24 26 26 26 26 25 26 12 Class Distribution -------------------- 27% | Mutant 27% | Hauler-Skirmisher 27% | Hauler-Tank 7% | Scavenger-Gunner 7% | Scavenger-Tank Dominant Class ---------------- Mutant | -10/Materials Mutant | -10/Mines Mutant | -10/Exiles Mutant | -9/Mines Scavenger-Gunner | -8/Materials Hauler-Tank | -7/Factory Hauler-Skirmisher | -7/Lower Caves Hauler-Skirmisher | -7/Lower Caves Hauler-Skirmisher | -7/Data Miner Hauler-Skirmisher | -6/Proximity Caves Hauler-Skirmisher | -6/Factory Hauler-Gunner | -6/Waste Resources | -11 -10 -10 -10 -9 -8 -7 -7 -7 -7 -6 -6 -6 ----------- Run | Scr Mat Min Exi Min Mat Fac Low Low Dat Pro Fac Was Matter Collected 4701 | 284 398 . 42 163 1832 1020 42 185 . 361 29 345 Remotely . | . . . . . . . . . . . . . Salvage Created 5541 | 120 626 . 42 30 2430 1018 . 188 . 395 . 692 Parts 286 | 13 38 . . 3 142 48 . 5 . 24 . 13 Haulers Intercepted 7 | . 2 . . . 5 . . . . . . . Recyclers Shooed 2 | . . . . 1 1 . . . . . . . Parts Field Recycled . | . . . . . . . . . . . . . Retrieved Matter . | . . . . . . . . . . . . . Parts Self-Destructed 20 | . . . . . . . . 3 . 17 . . Prevented 10 | . . . . . . . . 2 . 8 . . Kills | -11 -10 -10 -10 -9 -8 -7 -7 -7 -7 -6 -6 -6 ------- Run | Scr Mat Min Exi Min Mat Fac Low Low Dat Pro Fac Was Combat Hostiles Destroyed 75 | . 11 . . 2 30 14 . 5 . 10 . 3 Guns 65 | . 11 . . 2 30 14 . 2 . 3 . 3 AOE 10 | . . . . . . . . 3 . 7 . . Classes Destroyed 14 | 2 5 . . . 4 1 . . . 1 . 1 Worker 8 | . . . . . 7 1 . . . . . . Builder 3 | . . . . . 3 . . . . . . . Tunneler 3 | 3 . . . . . . . . . . . . Hauler 7 | . 2 . . . 5 . . . . . . . Recycler 13 | 1 1 . . . 7 4 . . . . . . Operator 2 | . 1 . . . 1 . . . . . . . Watcher 5 | . 2 . . . 3 . . . . . . . Swarmer 27 | . 3 . . 2 8 3 . 4 . 7 . . Grunt 27 | . 8 . . . 13 5 . . . 1 . . Sentry 15 | . . . . . 8 5 . 1 . 1 . . Hunter 1 | . . . . . 1 . . . . . . . Programmer 1 | . . . . . . 1 . . . . . . Behemoth 1 | . . . . . . . . . . 1 . . Compactor 3 | . . . . . . . . . . . . 3 Best Kill Streak 9 | 4 5 . . 2 9 5 . 4 . 5 . 2 Combat Bots Only 5 | . 3 . . 2 5 4 . 4 . 5 . 2 Max Kills in Single Turn 3 | 1 1 . . 1 2 2 . 3 . 2 . 1 Gunslinging 1 | . . . . . 1 1 . . . . . . Exploded 3 | . . . . . . . . 3 . 2 . . Melee . | . . . . . . . . . . . . . Uniques/NPCs Destroyed . | . . . . . . . . . . . . . Combat | -11 -10 -10 -10 -9 -8 -7 -7 -7 -7 -6 -6 -6 -------- Run | Scr Mat Min Exi Min Mat Fac Low Low Dat Pro Fac Was Damage Taken 5029 | . 632 . . 187 1496 991 . 105 . 1260 131 227 Core 665 | . 135 . . 44 201 78 . 32 . 115 15 45 Absorbed by Shields 93 | . . . . . . . . . . 93 . . Core Remaining (%) 64 | 100 . . . 28 63 . . . . 67 . . Volleys Fired 346 | 8 73 . 6 11 128 55 . 9 . 22 4 30 Largest 4 | 2 2 . 2 2 4 4 . 4 . 4 4 4 Hottest 172 | 60 85 . 85 85 101 134 . 109 . 137 137 172 Shots Fired 1089 | 15 142 . 12 22 502 200 . 27 . 65 16 88 Gun 1073 | 15 142 . 12 22 500 196 . 24 . 58 16 88 Cannon . | . . . . . . . . . . . . . Launcher 16 | . . . . . 2 4 . 3 . 7 . . Special . | . . . . . . . . . . . . . Kinetic 985 | 8 111 . 6 19 500 191 . 24 . 54 12 60 Thermal 88 | 7 31 . 6 3 . 5 . . . 4 4 28 Explosive 1 | . . . . . 1 . . . . . . . Electromagnetic 15 | . . . . . 1 4 . 3 . 7 . . Robot Hit Streak 24 | 6 10 . 5 4 24 16 . 6 . 7 3 21 Robot Miss Streak 7 | 1 4 . 3 3 6 3 . 6 . 7 4 3 Penetration Max . | . . . . . . . . . . . . . Secondary Targets 12 | . 1 . . . 7 3 . . . . . 1 Max Gunslinging Chain 1 | . 1 . . . 1 1 . . . . . 1 Shots Hit Robots 678 | 11 94 . 9 13 303 124 . 12 . 32 7 73 Core Hits 240 | 5 36 . 2 5 109 42 . 8 . 18 1 14 Critical Hits 6 | . 1 . . . 3 1 . . . . . 1 Critical Kills 1 | . 1 . . . . . . . . . . . Critical Parts Destroyed 3 | . . . . . 2 1 . . . . . . Melee Attacks 6 | . . . . . 3 3 . . . . . . Impact . | . . . . . . . . . . . . . Slashing 6 | . . . . . 3 3 . . . . . . Piercing . | . . . . . . . . . . . . . Sneak Attacks 1 | . . . . . 1 . . . . . . . Combat Hostiles . | . . . . . . . . . . . . . Follow-up Attacks . | . . . . . . . . . . . . . Damage Inflicted 9904 | 117 949 . 125 100 3613 1975 . 465 . 1211 103 1246 Guns 8829 | 117 949 . 125 97 3442 1893 . 213 . 644 103 1246 Cannons . | . . . . . . . . . . . . . Explosions 960 | . . . . . 59 82 . 252 . 567 . . Melee 112 | . . . . . 112 . . . . . . . Ramming 3 | . . . . 3 . . . . . . . . Kinetic 7908 | 50 720 . 51 65 3442 1825 . 213 . 644 61 837 Thermal 1087 | 67 229 . 74 32 . 68 . . . 166 42 409 Explosive 38 | . . . . . 8 30 . . . . . . Electromagnetic 756 | . . . . . 51 52 . 252 . 401 . . Impact . | . . . . . . . . . . . . . Slashing 112 | . . . . . 112 . . . . . . . Piercing . | . . . . . . . . . . . . . Highest Corruption 3 | . 3 3 3 3 2 . . . . . . . Average Corruption 2 | . 3 3 3 3 2 . . . . . . . Corruption Purged . | . . . . . . . . . . . . . Effects 52 | . 4 . 18 18 12 . . . . . . . Message Errors 15 | . 1 . 7 5 2 . . . . . . . Matter Fused 5 | . 1 . 3 1 . . . . . . . . Heat Flow Errors 7 | . . . 2 3 2 . . . . . . . Energy Discharges 10 | . 1 . 4 3 2 . . . . . . . Data Loss (minor) 8 | . . . 2 5 1 . . . . . . . Targeting Errors 6 | . 1 . . 1 4 . . . . . . . Weapon Failures 1 | . . . . . 1 . . . . . . . Overload Shots . | . . . . . . . . . . . . . Overflow Damage 37 | . . . . . . . . . . 37 . . Projectiles . | . . . . . . . . . . . . . Explosions 37 | . . . . . . . . . . 37 . . Melee . | . . . . . . . . . . . . . Knockbacks . | . . . . . . . . . . . . . Impact . | . . . . . . . . . . . . . Kinetic . | . . . . . . . . . . . . . Secondary . | . . . . . . . . . . . . . Self-Inflicted Damage 74 | . . . . . 22 . . . . 52 . . Shots 5 | . . . . . 1 . . . . 4 . . Rammed 1 | . . . . 1 . . . . . . . . Targets Rammed 1 | . . . . 1 . . . . . . . . Kicked . | . . . . . . . . . . . . . Crushed . | . . . . . . . . . . . . . Highest Temperature 509 | . 143 . 275 219 509 413 . 202 . 387 364 464 Average Temperature 93 | . 29 . 105 100 67 133 . 74 . 122 176 134 Received Heat Transfer 1179 | . 264 . . 6 495 282 . . . 132 . . Effects 12 | . . . . . 2 3 . . . . 4 3 Shutdowns 3 | . . . . . 1 . . . . . 2 . Energy Bleed 2 | . . . . . 1 1 . . . . . . Interference 6 | . . . . . . 1 . . . . 2 3 Damage (minor) 1 | . . . . . . 1 . . . . . . Siege Activations . | . . . . . . . . . . . . . Robots Corrupted . | . . . . . . . . . . . . . Combat Hostiles . | . . . . . . . . . . . . . Parts Fried 4 | . . . . . . . . 3 . 1 . . Impact Corruptions . | . . . . . . . . . . . . . Robots Melted . | . . . . . . . . . . . . . Combat Hostiles . | . . . . . . . . . . . . . Parts Melted . | . . . . . . . . . . . . . Heat Transferred 2280 | 150 548 . 148 74 . 148 . . . 250 74 888 Parts Sabotaged . | . . . . . . . . . . . . . Parts Stolen . | . . . . . . . . . . . . . Parts Stripped . | . . . . . . . . . . . . . Power Chain Reactions 3 | . . . . . . . . . . 3 . . Missiles Intercepted . | . . . . . . . . . . . . . Alert | -11 -10 -10 -10 -9 -8 -7 -7 -7 -7 -6 -6 -6 ------- Run | Scr Mat Min Exi Min Mat Fac Low Low Dat Pro Fac Was Peak Influence 661 | 20 349 8 . 200 661 560 . . . . 153 53 Average Influence 292 | 8 194 8 . 94 355 422 . . . . 146 39 Maximum Alert Level 2 | . 1 . . 1 2 2 . . . . . . Low Security (%) 33 | 100 42 100 . 91 16 . . . . . 100 100 Level 1 33 | . 57 . . 8 41 35 . . . . . . Level 2 32 | . . . . . 41 64 . . . . . . Level 3 . | . . . . . . . . . . . . . Level 4 . | . . . . . . . . . . . . . Level 5 . | . . . . . . . . . . . . . High Security . | . . . . . . . . . . . . . Max Security . | . . . . . . . . . . . . . Squads Dispatched 17 | . 4 . . . 4 9 . . . . . . Investigation 5 | . 2 . . . 2 1 . . . . . . Extermination 1 | . . . . . . 1 . . . . . . Reinforcement 3 | . 2 . . . 1 . . . . . . . Assault . | . . . . . . . . . . . . . Garrison 8 | . . . . . 1 7 . . . . . . Intercept . | . . . . . . . . . . . . . Construction Impeded . | . . . . . . . . . . . . . Haulers Reinforced . | . . . . . . . . . . . . . Stealth | -11 -10 -10 -10 -9 -8 -7 -7 -7 -7 -6 -6 -6 --------- Run | Scr Mat Min Exi Min Mat Fac Low Low Dat Pro Fac Was Distress Signals 5 | . 3 . . . 2 . . . . . . . Communications Jammed . | . . . . . . . . . . . . . Distress Signals . | . . . . . . . . . . . . . Times Spotted 125 | . 26 . . 11 45 17 . 6 . 15 1 4 Peak Tracking Total 6 | . 3 . . 4 5 4 . 4 . 6 1 2 Tactical Retreats 5 | . 2 . . . . 1 . 1 . 1 . . Traps | -11 -10 -10 -10 -9 -8 -7 -7 -7 -7 -6 -6 -6 ------- Run | Scr Mat Min Exi Min Mat Fac Low Low Dat Pro Fac Was Traps Triggered 4 | . 2 . . . . . . . . . 2 . Indirectly . | . . . . . . . . . . . . . Trap Hack Attempts . | . . . . . . . . . . . . . Triggered . | . . . . . . . . . . . . . Disarmed . | . . . . . . . . . . . . . Reprogrammed . | . . . . . . . . . . . . . Reused . | . . . . . . . . . . . . . Traps Extracted . | . . . . . . . . . . . . . Installed . | . . . . . . . . . . . . . Triggered . | . . . . . . . . . . . . . Machines | -11 -10 -10 -10 -9 -8 -7 -7 -7 -7 -6 -6 -6 ---------- Run | Scr Mat Min Exi Min Mat Fac Low Low Dat Pro Fac Was Machines Disabled 7 | . . . . . 4 3 . . . . . . Max in Single Turn 2 | . . . . . 1 2 . . . . . . Garrison Access 2 | . . . . . 1 . . . . . 1 . Machines Sabotaged . | . . . . . . . . . . . . . Garrisons Compromised . | . . . . . . . . . . . . . Overloaded Fab Kills . | . . . . . . . . . . . . . Fab Network Shutdowns . | . . . . . . . . . . . . . Hacking | -11 -10 -10 -10 -9 -8 -7 -7 -7 -7 -6 -6 -6 --------- Run | Scr Mat Min Exi Min Mat Fac Low Low Dat Pro Fac Was Machines Accessed 31 | . 7 . 2 . 9 6 . 1 4 . 2 . Terminals 12 | . 5 . . . 6 1 . . . . . . Fabricators 1 | . . . . . . 1 . . . . . . Repair Stations 2 | . . . . . . 1 . . . . 1 . Recycling Units 6 | . 2 . . . 2 2 . . . . . . Scanalyzers . | . . . . . . . . . . . . . Garrison Access 3 | . . . . . 1 1 . . . . 1 . Total Hacks 106 | . 25 . 6 . 24 12 . 1 30 . 8 . Successful 74 | . 15 . 6 . 13 6 . 1 30 . 3 . Failed 32 | . 10 . . . 11 6 . . . . 5 . Catastrophic 3 | . 1 . . . 1 . . . . . 1 . Database Lockouts . | . . . . . . . . . . . . . Manual 19 | . 8 . 1 . 7 3 . . . . . . Terminals 38 | . 19 . . . 16 3 . . . . . . Fabricators 2 | . . . . . . 2 . . . . . . Repair Stations 5 | . . . . . . 1 . . . . 4 . Recycling Units 16 | . 6 . . . 6 4 . . . . . . Scanalyzers . | . . . . . . . . . . . . . Garrison Access 8 | . . . . . 2 2 . . . . 4 . Terminal Hacks 53 | . 9 . 6 . 6 1 . 1 30 . . . Record 16 | . . . 5 . . . . . 11 . . . Part Schematic 10 | . 2 . . . . . . . 8 . . . Robot Schematic 8 | . . . . . . . . . 8 . . . Prototype ID Bank 5 | . 2 . . . . . . . 3 . . . Open Door 1 | . . . . . . . . 1 . . . . Branch Access Points 1 | . . . . . 1 . . . . . . . Alert Level 1 | . . . . . 1 . . . . . . . Unreport Threat 1 | . 1 . . . . . . . . . . . Transport Status 1 | . 1 . . . . . . . . . . . Hauler Manifests 2 | . . . . . 1 1 . . . . . . Registered Components 2 | . 1 . . . 1 . . . . . . . Registered Prototypes 1 | . 1 . . . . . . . . . . . Zone Layout 3 | . 1 . . . 2 . . . . . . . EX-Prototype ID Bank 1 | . . . 1 . . . . . . . . . Fabricator Hacks 2 | . . . . . . 2 . . . . . . Load Schematic 1 | . . . . . . 1 . . . . . . Build 1 | . . . . . . 1 . . . . . . Repair Station Hacks 2 | . . . . . . . . . . . 2 . Scan Component 1 | . . . . . . . . . . . 1 . Repair 1 | . . . . . . . . . . . 1 . Recycling Unit Hacks 6 | . 2 . . . 2 2 . . . . . . Retrieve Components 6 | . 2 . . . 2 2 . . . . . . Scanalyzer . | . . . . . . . . . . . . . Garrison Access Hacks 2 | . . . . . 1 . . . . . 1 . Seal Access 2 | . . . . . 1 . . . . . 1 . Unauthorized Hacks 9 | . 4 . . . 4 1 . . . . . . Terminals 4 | . 2 . . . 2 . . . . . . . Track 2 | . 1 . . . 1 . . . . . . . Botnet 2 | . 1 . . . 1 . . . . . . . Fabricators . | . . . . . . . . . . . . . Repair Stations . | . . . . . . . . . . . . . Recycling Units 5 | . 2 . . . 2 1 . . . . . . Tunnel 5 | . 2 . . . 2 1 . . . . . . Scanalyzers . | . . . . . . . . . . . . . Garrison Access . | . . . . . . . . . . . . . Data Cores Recovered . | . . . . . . . . . . . . . Used . | . . . . . . . . . . . . . Hacking Detections 18 | . 5 . . . 7 4 . . . . 2 . Full Trace Events . | . . . . . . . . . . . . . Feedback Events . | . . . . . . . . . . . . . Feedback Blocked . | . . . . . . . . . . . . . Robot Schematics Acquired 8 | . . . . . . . . . 8 . . . Robots Built . | . . . . . . . . . . . . . Matter . | . . . . . . . . . . . . . Time . | . . . . . . . . . . . . . Total Robot Build Rating . | . . . . . . . . . . . . . Part Schematics Acquired 10 | . 2 . . . . . . . 8 . . . Parts Built 1 | . . . . . . 1 . . . . . . Matter 102 | . . . . . . 102 . . . . . . Time 25 | . . . . . . 25 . . . . . . Total Part Build Rating 1 | . . . . . . 1 . . . . . . Parts Repaired 1 | . . . . . . . . . . . 1 . Time 44 | . . . . . . . . . . . 44 . Parts Recycled . | . . . . . . . . . . . . . Recycled Matter . | . . . . . . . . . . . . . Retrieved Matter . | . . . . . . . . . . . . . Retrieved Components 39 | . 9 . . . 18 12 . . . . . . Parts Scanalyzed . | . . . . . . . . . . . . . Part Schematics Acquired . | . . . . . . . . . . . . . Parts Damaged . | . . . . . . . . . . . . . Bothacking | -11 -10 -10 -10 -9 -8 -7 -7 -7 -7 -6 -6 -6 ------------ Run | Scr Mat Min Exi Min Mat Fac Low Low Dat Pro Fac Was Used RIF Installer . | . . . . . . . . . . . . . Robots Hacked . | . . . . . . . . . . . . . Non-combat . | . . . . . . . . . . . . . Combat . | . . . . . . . . . . . . . Robot Hacks Applied . | . . . . . . . . . . . . . Relay Couplers Released . | . . . . . . . . . . . . . Robots Rewired 3 | . . . 3 . . . . . . . . . Allies Hacked . | . . . . . . . . . . . . . Hacks Repelled . | . . . . . . . . . . . . . Allies | -11 -10 -10 -10 -9 -8 -7 -7 -7 -7 -6 -6 -6 -------- Run | Scr Mat Min Exi Min Mat Fac Low Low Dat Pro Fac Was Total Allies 5 | . . . 3 1 . . . . . 1 . . Largest Group 4 | . . . 3 4 4 . . . . 1 1 1 Highest-Rated Group 94 | . . . 37 68 68 . . . . 94 94 94 Highest-Rated Ally 94 | . . . 21 31 31 . . . . 94 94 94 Total Orders . | . . . . . . . . . . . . . Ally Attacks 83 | . . . . 27 22 . . . . 12 6 16 Total Damage 1700 | . . . . 263 285 . . . . 365 228 559 Kills 18 | . . . . 8 4 . . . . 5 1 . Allies Corrupted . | . . . . . . . . . . . . . Allies Melted . | . . . . . . . . . . . . . Intel | -11 -10 -10 -10 -9 -8 -7 -7 -7 -7 -6 -6 -6 ------- Run | Scr Mat Min Exi Min Mat Fac Low Low Dat Pro Fac Was Robot Analysis Total . | . . . . . . . . . . . . . Derelict Logs Recovered 3 | . . . . 2 . . . . . 1 . . Drone Launches . | . . . . . . . . . . . . . Drone Recoveries . | . . . . . . . . . . . . . Exploration | -11 -10 -10 -10 -9 -8 -7 -7 -7 -7 -6 -6 -6 ------------- Run | Scr Mat Min Exi Min Mat Fac Low Low Dat Pro Fac Was Turns Passed 9432 | 119 873 23 948 674 2184 1638 586 963 186 715 389 134 Spaces Moved 4578 | 76 535 20 570 390 904 726 292 460 94 311 162 38 Core 5 | 5 . . . . . . . . . . . . Treads 3674 | . . . 357 390 904 726 292 460 94 311 140 . Legs . | . . . . . . . . . . . . . Wheels 899 | 71 535 20 213 . . . . . . . 22 38 Hover . | . . . . . . . . . . . . . Flight . | . . . . . . . . . . . . . Fastest Speed 50 | 50 100 120 120 160 180 200 200 200 200 200 140 130 Average Speed 175 | 96 113 120 157 160 184 200 200 200 200 204 191 138 Slowest Speed 260 | 100 120 120 180 180 200 200 200 200 200 260 200 140 Overloaded Moves . | . . . . . . . . . . . . . Propulsion Burnouts . | . . . . . . . . . . . . . Robots Hopped . | . . . . . . . . . . . . . Cave-ins Triggered . | . . . . . . . . . . . . . Exploration Rate (%) 47 | 5 70 9 92 88 70 18 68 60 73 50 5 15 Regions Visited 12 Branch Regions 7 Pre-discovered Areas 7 | . 2 . 1 . 2 1 . . 1 . . . Known Exits Taken 6 | . . . . 1 . 1 1 1 1 1 . . Unknown Exits Taken 5 | 1 1 1 1 . 1 . . . . . . . Scrap Searched 11 | . . . . 1 . . 5 3 . 2 . . Spaces Dug 13 | . . . . . 13 . . . . . . . Terrain Destroyed 58 | . . . . . 17 35 . . . 6 . . Melee 2 | . . . . . 2 . . . . . . . Projectile 4 | . . . . . 4 . . . . . . . AOE 52 | . . . . . 11 35 . . . 6 . . Actions | -11 -10 -10 -10 -9 -8 -7 -7 -7 -7 -6 -6 -6 --------- Run | Scr Mat Min Exi Min Mat Fac Low Low Dat Pro Fac Was Total 5390 | 103 673 19 614 422 1167 846 295 489 93 353 237 79 Wait 144 | 9 32 . 7 11 10 18 1 3 . 1 52 . Move 4567 | 75 534 19 569 389 903 725 291 459 93 310 162 38 Hop . | . . . . . . . . . . . . . Pick Up 79 | 5 18 . 6 2 24 9 1 3 . 4 5 2 Fast Attach 34 | 6 1 . . 1 15 2 . 1 . 3 3 2 Attach 20 | . 4 . 1 . 5 2 . . . 5 3 . Detach 2 | . . . . . 1 1 . . . . . . Swap 76 | . 4 . . 2 33 17 1 8 . 7 1 3 Drop 95 | . 7 . 5 5 45 14 1 6 . 1 7 4 Fire 346 | 8 73 . 6 11 128 55 . 9 . 22 4 30 Melee 6 | . . . . . 3 3 . . . . . . Ram . | . . . . . . . . . . . . . Kick . | . . . . . . . . . . . . . Crush 1 | . . . . 1 . . . . . . . . Escape Stasis . | . . . . . . . . . . . . . Rewire 20 | . . . 20 . . . . . . . . . Trap . | . . . . . . . . . . . . . Miscellaneous . | . . . . . . . . . . . . . Route ------- -11/Scrapyard -10/Materials (discovered 3 exits: [*Mat] / [*Min x2]) -10/Mines -10/Exiles (discovered 2 exits: [*Min x2]) -9/Mines (discovered 2 exits: *Mat x2) -8/Materials (discovered 2 exits: *Fac x2) -7/Factory -7/Lower Caves -7/Lower Caves -7/Data Miner -6/Proximity Caves -6/Factory -6/Waste History --------- Turn | Location | Event 29 | -11/Scrapyard | Discovered new exit (range 16) 120 | -11/Scrapyard | Entered Materials 314 | -10/Materials | Build established: Mutant 592 | -10/Materials | Discovered new exit (range 4) 595 | -10/Materials | Discovered new exit (range 16) 830 | -10/Materials | Discovered new exit (range 15) 877 | -10/Materials | Core integrity fell below 50% 993 | -10/Materials | Entered Mines 1011 | -10/Mines | Deemed a non-threat by the Exiles lab entrance 1011 | -10/Mines | Discovered new exit (range 5) 1016 | -10/Mines | Entered Exiles 1016 | -10/Exiles | Found Exiles lab destroyed 1135 | -10/Exiles | Learned location of Zion (-6) 1483 | -10/Exiles | Discovered new exit (range 15) 1717 | -10/Exiles | Opened EX-Vault 1736 | -10/Exiles | Found PSU Rigger 1936 | -10/Exiles | Discovered new exit (range 10) 1964 | -10/Exiles | Entered Mines 1964 | -9/Mines | Accompanied by 3 allies 2066 | -9/Mines | Discovered new exit (range 15) 2115 | -9/Mines | Identified exit to Materials 2132 | -9/Mines | Received a Rocket Launcher from a helpful Derelict 2430 | -9/Mines | Received a Mining Laser from a helpful Derelict 2638 | -9/Mines | Entered Materials 2638 | -8/Materials | Accompanied by 4 allies 2638 | -8/Materials | Evolved 4 slots: Utility x2, Weapon x2 2963 | -8/Materials | Build established: Scavenger-Gunner 3009 | -8/Materials | Garrison activated, responded to threat 3207 | -8/Materials | Lost 3 parts (1p2u) 3908 | -8/Materials | Build established: Scavenger-Tank 3957 | -8/Materials | Discovered new exit (range 15) 4416 | -8/Materials | Build established: Hauler-Tank 4812 | -8/Materials | Discovered new exit (range 5) 4822 | -8/Materials | Entered Factory 4822 | -7/Factory | Evolved 2 slots: Utility x2 5113 | -7/Factory | Garrison activated, responded to threat 5378 | -7/Factory | Garrison activated, responded to threat 6207 | -7/Factory | Fabricated Hcp. Storage Unit? 6410 | -7/Factory | Discovered new exit (range 8) 6460 | -7/Factory | Identified exit to Lower Caves 6460 | -7/Factory | Entered Lower Caves 6461 | -7/Lower Caves | Encountered a Warlord checkpoint 6759 | -7/Lower Caves | Build established: Hauler-Skirmisher 6956 | -7/Lower Caves | Discovered new exit (range 4) 7042 | -7/Lower Caves | Identified exit to Lower Caves 7046 | -7/Lower Caves | Entered another Lower Caves area 7596 | -7/Lower Caves | Attracted the attention of an 0b10 checkpoint 7793 | -7/Lower Caves | Discovered new exit (range 14) 8007 | -7/Lower Caves | Identified exit to Data Miner 8009 | -7/Lower Caves | Entered Data Miner 8009 | -7/Data Miner | Discovered new exit (range 6) 8047 | -7/Data Miner | Met Data Miner 8081 | -7/Data Miner | Acquired the access code to Warlord's prototype stash 8081 | -7/Data Miner | Learned location of Section 7 (-3) 8119 | -7/Data Miner | Received God Mode back door access code from Data Miner 8191 | -7/Data Miner | Identified exit to Proximity Caves 8195 | -7/Data Miner | Entered Proximity Caves 8197 | -6/Proximity Caves | Attracted the attention of an 0b10 checkpoint 8200 | -6/Proximity Caves | Spotted B-75 Beast 8252 | -6/Proximity Caves | Destroyed B-75 Beast 8275 | -6/Proximity Caves | Lost 4 parts (1p1n2u) 8450 | -6/Proximity Caves | Escorted by Enhanced Grunt 8864 | -6/Proximity Caves | Discovered new exit (range 6) 8890 | -6/Proximity Caves | Identified exit to Factory 8910 | -6/Proximity Caves | Entered Factory 8910 | -6/Factory | Accompanied by 1 ally 8910 | -6/Factory | Evolved 2 slots: Power x1, Utility x1 9078 | -6/Factory | Repaired Imp. Shield Generator 9299 | -6/Factory | Sucked down chute 9299 | -6/Factory | Entered Waste 9300 | -6/Waste | 1 allies followed down the chute 9303 | -6/Waste | Found Broken Gamma Bomb Array 9304 | -6/Waste | Spotted C-40 Crusher 9332 | -6/Waste | Destroyed C-40 Crusher 9338 | -6/Waste | Destroyed C-40 Crusher 9364 | -6/Waste | Spotted C-40 Crusher 9410 | -6/Waste | Crushed by Compactor (1 part destroyed, 2 dropped) 9413 | -6/Waste | Crushed by Compactor (0 parts destroyed, 2 dropped) 9416 | -6/Waste | Crushed by Compactor (0 parts destroyed, 1 dropped) 9419 | -6/Waste | Crushed by Compactor (1 part destroyed) 9421 | -6/Waste | Destroyed C-40 Crusher 9432 | -6/Waste | Crushed by Compactor (1 part destroyed, 1 dropped) 9433 | -6/Waste | Self-destructed Last Messages --------------- 09411_ Acquired 7 matter. 09413_ Hcp. Matter Pod crushed. 09413_ Fission Core crushed. 09413_ Prc. Beam Rifle crushed. 09416_ Acquired 7 matter. 09416_ Fission Core crushed. 09416_ Prc. Beam Rifle crushed. 09418_ Acquired 7 matter. 09419_ Prc. Beam Rifle crushed. 09419_ Hcp. Storage Unit crushed. 09420_ Acquired 7 matter. 09421_ C-40 Crusher destroyed. 09422_ Acquired 7 matter. 09431_ Prc. Beam Rifle crushed. 09431_ Broken Gamma Bomb Array crushed. 09432_ Acquired 7 matter. 09432_ Prc. Beam Rifle crushed. 09432_ Imp. Propulsion Shielding crushed. 09432_ Enh. Autogun crushed. 09432_ Autogun crushed. Map ----- +----------------------------------------------------+ | ???????????????????????????????????????????????? | | ???????????????????????????????????????????????? | | ???????????????????????????????????????????????? | | ???????????????????????????????????????????????? | | ???????????????????????????????????????????????? | | ???????????????????????????????????????????????? | | ???????????????????????????????????????????????? | | ???????????????????????????????????????????????? | | ???????????????????????????????????????????????? | | ???????????????????????????????????????????????? | | ???????????????????????????????????????????????? | | ???????????????????????????????????????????????? | | ???????????????????????????????????????????????? | | ???????????????????????????????????????????????? | | ???????????????????????????????????????????????? | | ???????????????????????????????????????????????? | | ???????????????????????????????????????????????? | | ???????????????????????????????????????????????? | | ????????????????????????????????#??????????????? | | ?????????????############?????? #??????????????? | | ?????????????# #????? #??????????????? | | ?????????????# #???? #??????????????? | | ?????????????# !#### #######????????? | | ?????????????# !*] ???????? | | ?????????????# *!!!= ???????? | | ?????????????# !!%!@CC ???????? | | ?????????????# *!=!!CC ???????? | | ?????????????# !*%=*#### * ######?????????? | | ?????????????# ! #???? #??????????????? | | ?????????????# #????? #??????????????? | | ?????????????############???????#??????????????? | | ???????????????????????????????????????????????? | | ???????????????????????????????????????????????? | | ???????????????????????????????????????????????? | | ???????????????????????????????????????????????? | | ???????????????????????????????????????????????? | | ???????????????????????????????????????????????? | | ???????????????????????????????????????????????? | | ???????????????????????????????????????????????? | | ???????????????????????????????????????????????? | | ???????????????????????????????????????????????? | | ???????????????????????????????????????????????? | | ???????????????????????????????????????????????? | | ???????????????????????????????????????????????? | | ???????????????????????????????????????????????? | | ???????????????????????????????????????????????? | | ???????????????????????????????????????????????? | | ???????????????????????????????????????????????? | | ???????????????????????????????????????????????? | | ???????????????????????????????????????????????? | +----------------------------------------------------+ Best States ------------- Heat Dissipation 64 Coolant Potential 65 Energy Generation 34 Energy Capacity 535 Matter Stores 500 Matter Capacity 500 Sight Range 20 Robot Scan Range 16 Terrain Scan Density 10 Armor Coverage 450 Weapon Shielding 33 Weapon Cycling 15 Evasion (%) 40 Targeting Accuracy 5 Target Analysis 5 Recoil Reduction 2 Energy Filtering 30 Item Schematics ----------------- Lrg. Storage Unit | -10/Materials | Hacked Hcp. Storage Unit | -10/Materials | Hacked Plasma Sword | -7/Data Miner | Free Mni. Smartbomb Launcher | -7/Data Miner | Free Exp. Terrain Scan Processor | -7/Data Miner | Free Triangulator | -7/Data Miner | Free Cmb. Gravmag System | -7/Data Miner | Free Exp. Flexi-carbon Leg | -7/Data Miner | Free Lgt. Regenerative Plating | -7/Data Miner | Free Combat Drone Bay | -7/Data Miner | Free Robot Schematics ------------------ S-27 Virus | -7/Data Miner | Free G-50 Soldier | -7/Data Miner | Free L-41 Fighter | -7/Data Miner | Free X-72 Disruptor | -7/Data Miner | Free H-66 Slayer | -7/Data Miner | Free P-70 Sage | -7/Data Miner | Free I-36 Angel | -7/Data Miner | Free I-47 Archangel | -7/Data Miner | Free Fabricated ------------ Hcp. Storage Unit | x1 | -7/Factory Alien Tech Used ----------------- None Achievements -------------- None Challenges ------------ None Game ------ Seed CoreAntimatterCompressor Manual? 0 Play Time 00:52:43 Cumulative 424.6 hours Start 2020.08.20 @ 18:16:53 End 2020.08.20 @ 19:14:27 Sessions 1 Manual Loads 0 Difficulty Rogue Special Mode None Game No. 285 Rogue 285 Adventurer 0 Explorer 0 Win Type - Total 4 Types 4/0/0/0/0/0/0 Lore% 86 Gallery% 86 Achievement% 65 Wizard Run 0 Options --------- ASCII 0 Keyboard 0 Movement Mouse Keybinds 1 Fullscreen 2 Font 24/Smallcaps Map View 76x50 Tactical HUD 1 Map Filters NONE Filters NONE Steam 1 RUN: f94e9494-56e6-444f-b894-e159fe7c06e4